bitfinex/quotes_BTCUSD_20250328
["timestamp","ask_amount","ask_price","bid_price","bid_amount"]
[1743149223484,0.02333441,85566.0,85556.0,1.45323638]
[1743149223927,0.02333441,85566.0,85556.0,1.44154838]
[1743149224288,0.02333441,85566.0,85556.0,1.45323638]
[1743149224735,0.00031358,85567.0,85556.0,1.49853638]
[1743149225694,0.00031358,85567.0,85556.0,1.53353239]
[1743149225898,0.00031358,85567.0,85556.0,1.52184439]
[1743149226231,0.00031358,85567.0,85556.0,1.28807939]
[1743149226417,0.00031358,85567.0,85556.0,1.52184439]
[1743149226691,0.00031358,85567.0,85556.0,1.53273242]
[1743149227122,0.00031358,85567.0,85556.0,1.40943242]
[1743149227778,0.00031358,85567.0,85556.0,1.16112657]
[1743149228187,0.00031358,85567.0,85556.0,1.17566742]
[1743149228925,0.00031358,85567.0,85556.0,1.42112042]
[1743149231091,0.00031358,85567.0,85556.0,1.41612042]
[1743149231298,0.00031358,85567.0,85556.0,1.35925268]
[1743149231505,0.00031358,85567.0,85556.0,1.35436465]
[1743149232134,0.00031358,85567.0,85556.0,1.18601165]
[1743149232335,0.00031358,85567.0,85556.0,1.4716782]
[1743149232673,0.00031358,85567.0,85556.0,1.1668132]
[1743149232981,0.00031358,85567.0,85556.0,1.1777558]
[1743149233753,0.01833577,85566.0,85556.0,1.1668132]
[1743149234518,0.01833577,85566.0,85556.0,1.4005782]
[1743149234773,0.01833577,85566.0,85556.0,1.4122662]
[1743149234978,0.00031358,85567.0,85556.0,1.4955662]
[1743149235509,0.00031358,85567.0,85556.0,1.2501132]
[1743149235711,0.00031358,85567.0,85556.0,1.4955662]
[1743149236067,0.00031358,85567.0,85556.0,1.5435662]
[1743149236684,0.00031358,85567.0,85556.0,1.58004652]
[1743149237717,0.00031358,85567.0,85566.0,0.245423]
[1743149237872,0.00031358,85567.0,85566.0,0.37422149]
[1743149238787,0.00031358,85567.0,85566.0,0.8436762]
[1743149238990,0.00031358,85567.0,85566.0,0.8496762]
[1743149239610,0.00031358,85567.0,85566.0,0.90372657]
[1743149239808,0.00031358,85567.0,85566.0,1.06601711]
[1743149240010,0.00031358,85567.0,85566.0,1.09443085]
[1743149240247,0.00031358,85567.0,85566.0,1.10539031]
[1743149240446,0.00031358,85567.0,85566.0,1.09939031]
[1743149240680,0.00031358,85567.0,85566.0,1.10539031]
[1743149241201,0.00031358,85567.0,85566.0,1.09939031]
[1743149241610,0.00031358,85567.0,85566.0,1.04841082]
[1743149241836,0.00031358,85567.0,85566.0,1.04241082]
[1743149242211,0.00031358,85567.0,85566.0,1.04841082]
[1743149242407,0.00031358,85567.0,85566.0,1.34841082]
[1743149242670,0.00031358,85567.0,85566.0,1.04841082]
[1743149243584,0.00031358,85567.0,85566.0,1.02472482]
[1743149243789,0.00031358,85567.0,85566.0,1.04241082]
[1743149243993,0.00031358,85567.0,85566.0,0.96481082]
[1743149244194,0.00031358,85567.0,85566.0,0.90655136]
[1743149244448,0.00031358,85567.0,85566.0,0.87002877]
[1743149244612,0.00031358,85567.0,85566.0,0.62460577]
[1743149244974,0.00031358,85567.0,85566.0,0.85551798]
[1743149245180,0.00031358,85567.0,85566.0,0.86720398]
[1743149246910,0.00031358,85567.0,85566.0,1.01254278]
[1743149248735,0.00031358,85567.0,85566.0,0.755592]
[1743149249487,0.00031358,85567.0,85566.0,0.77886985]
[1743149249655,0.00031358,85567.0,85566.0,1.00660685]
[1743149249857,0.00031358,85567.0,85566.0,1.01755841]
[1743149250058,0.00031358,85567.0,85566.0,0.77813541]
[1743149250691,0.00031358,85567.0,85566.0,0.76654356]
[1743149250925,0.00031358,85567.0,85566.0,0.76054356]
[1743149251330,0.00031358,85567.0,85566.0,0.76654356]
[1743149252150,0.00031358,85567.0,85566.0,0.76054356]
[1743149252355,0.00031358,85567.0,85566.0,0.75454356]
[1743149252552,0.00031358,85567.0,85566.0,0.63174507]
[1743149252778,0.00031358,85567.0,85566.0,0.22519191]
[1743149253663,0.00031358,85567.0,85566.0,0.16829036]
[1743149254073,0.07601358,85567.0,85566.0,0.1573388]
[1743149254280,0.68271603,85567.0,85566.0,0.1573388]
[1743149254663,0.68271603,85567.0,85566.0,0.1453388]
[1743149254886,0.67103003,85567.0,85566.0,0.1573388]
[1743149255312,0.43729603,85567.0,85566.0,0.1513388]
[1743149255487,0.67103003,85567.0,85566.0,0.1483388]
[1743149255692,0.68271603,85567.0,85566.0,0.1503388]
[1743149256714,0.37601358,85567.0,85566.0,0.1503388]
[1743149256888,0.60974758,85567.0,85566.0,0.1503388]
[1743149257328,0.60974758,85567.0,85566.0,1.1503388]
[1743149257720,0.62143358,85567.0,85566.0,1.1503388]
[1743149258099,0.64479193,85567.0,85566.0,1.1503388]
[1743149258284,0.64496093,85567.0,85566.0,1.1503388]
[1743149260722,0.64496093,85567.0,85566.0,1.1483388]
[1743149260951,0.64496093,85567.0,85566.0,1.1453388]
[1743149261122,0.64496093,85567.0,85566.0,1.1473388]
[1743149261322,0.64496093,85567.0,85566.0,1.1493388]
[1743149261531,0.87347621,85567.0,85566.0,1.1493388]
[1743149261762,0.80661857,85567.0,85566.0,1.1493388]
[1743149263930,0.80661857,85567.0,85566.0,1.1453388]
[1743149264341,0.80661857,85567.0,85566.0,1.1463388]
[1743149265620,0.93159877,85567.0,85566.0,0.5889308]
[1743149265820,2.14177277,85567.0,85566.0,0.5889308]
[1743149265989,2.25603041,85567.0,85566.0,0.5889308]
[1743149266198,2.23769186,85567.0,85566.0,0.5889308]
[1743149266396,1.18588186,85567.0,85566.0,0.5889308]
[1743149266936,1.20958023,85567.0,85566.0,0.5889308]
[1743149267082,1.20958023,85567.0,85566.0,0.5879308]
[1743149267523,1.05121623,85567.0,85566.0,0.5879308]
[1743149268278,1.16247023,85567.0,85566.0,0.5879308]
[1743149269007,1.06955727,85567.0,85566.0,0.5879308]
[1743149269214,0.85529963,85567.0,85566.0,0.5879308]
[1743149269411,0.96489963,85567.0,85566.0,0.5879308]
[1743149269611,0.41947963,85567.0,85566.0,0.5879308]
[1743149270065,0.71947963,85567.0,85566.0,0.5879308]
[1743149270471,0.95321363,85567.0,85566.0,0.5879308]
[1743149270746,1.06947127,85567.0,85566.0,0.5879308]
[1743149271605,0.83573727,85567.0,85566.0,0.5879308]
[1743149271913,1.08115727,85567.0,85566.0,0.5882688]
[1743149272265,0.83573727,85567.0,85566.0,0.5882688]
[1743149272568,0.60722199,85567.0,85566.0,0.5882688]
[1743149272764,0.48412199,85567.0,85566.0,0.5882688]
[1743149273316,0.48408199,85567.0,85566.0,0.5882688]
[1743149273520,0.46574095,85567.0,85566.0,0.5882688]
[1743149273746,0.02618095,85567.0,85566.0,0.5882688]
[1743149273958,0.16570095,85567.0,85566.0,0.5882688]
[1743149274155,0.02618095,85567.0,85566.0,0.79476729]
[1743149275112,0.00048258,85567.0,85566.0,0.79476729]
[1743149275317,0.00048258,85567.0,85566.0,0.79676729]
[1743149275623,0.00048258,85567.0,85566.0,0.79576729]
[1743149275834,0.00048258,85567.0,85566.0,0.81659549]
[1743149277148,0.00048258,85567.0,85566.0,0.82159549]
[1743149277364,0.00048258,85567.0,85566.0,0.82759549]
[1743149277563,0.00048258,85567.0,85566.0,0.82259549]
[1743149277763,0.00048258,85567.0,85566.0,0.82759549]
[1743149279011,0.00048258,85567.0,85566.0,0.86249361]
[1743149281089,0.00048258,85567.0,85566.0,0.87340642]
[1743149281497,0.00048258,85567.0,85566.0,0.8385083]
[1743149282945,0.00048258,85567.0,85566.0,0.82759549]
[1743149283099,0.00048258,85567.0,85566.0,1.06133249]
[1743149283304,0.00048258,85567.0,85566.0,1.15321661]
[1743149284333,0.00048258,85567.0,85566.0,1.14721661]
[1743149284540,0.00048258,85567.0,85566.0,1.15312942]
[1743149284742,0.00048258,85567.0,85566.0,1.15912942]
[1743149284954,0.00048258,85567.0,85566.0,1.16512942]
[1743149287771,0.00048258,85567.0,85566.0,1.57768258]
[1743149288009,0.00048258,85567.0,85566.0,2.13420258]
[1743149289505,0.00048258,85567.0,85566.0,2.4576325]
[1743149290171,0.00048258,85567.0,85566.0,2.47509942]
[1743149290750,0.00048258,85567.0,85566.0,2.46909942]
[1743149291149,0.00048258,85567.0,85566.0,2.47509942]
[1743149291513,5.8e-07,85567.0,85566.0,2.49909942]
[1743149291687,5.8e-07,85567.0,85566.0,2.49309942]
[1743149291891,0.0001692,85570.0,85569.0,0.68555585]
[1743149292086,0.0001692,85570.0,85569.0,0.93985349]
[1743149293653,0.002,85589.0,85584.0,0.245372]
[1743149293857,0.002,85589.0,85584.0,0.91755445]
[1743149294742,0.002,85589.0,85584.0,0.97428077]
[1743149294876,0.002,85589.0,85584.0,0.98304412]
[1743149295417,0.002,85589.0,85584.0,0.59790877]
[1743149295616,0.002,85589.0,85584.0,0.58336792]
[1743149296041,0.002,85589.0,85584.0,0.58936792]
[1743149296240,0.002,85589.0,85584.0,0.5604698]
[1743149296482,0.002,85589.0,85584.0,0.57138261]
[1743149296897,0.002,85589.0,85584.0,0.58592346]
[1743149297511,0.002,85589.0,85584.0,0.56409526]
[1743149297675,0.02371789,85587.0,85584.0,0.56409526]
[1743149298085,0.02371789,85587.0,85584.0,0.55318245]
[1743149298291,0.02371789,85587.0,85584.0,0.5386416]
[1743149298448,0.00292095,85586.0,85584.0,0.012]
[1743149298646,0.048625,85585.0,85584.0,0.012]
[1743149298847,0.0001692,85585.0,85584.0,0.012]
[1743149299052,0.0001692,85585.0,85584.0,0.006]
[1743149299274,0.0001692,85585.0,85575.0,0.0218282]
[1743149299508,0.00292137,85584.0,85575.0,0.0218282]
[1743149300138,0.00292137,85584.0,85574.0,0.01091281]
[1743149300345,0.00292137,85584.0,85567.0,0.01091281]
[1743149300556,0.19746594,85576.0,85568.0,0.11425764]
[1743149300759,0.00292153,85575.0,85568.0,0.11425764]
[1743149300959,0.1404,85574.0,85568.0,0.11425764]
[1743149301175,0.1404,85574.0,85569.0,0.02184134]
[1743149301794,0.15873395,85574.0,85569.0,0.02184134]
[1743149302438,0.15873395,85574.0,85566.0,1.1447888]
[1743149302607,0.15873395,85574.0,85566.0,1.25904644]
[1743149302818,0.15873395,85574.0,85569.0,0.005]
[1743149303047,0.15873395,85574.0,85570.0,0.11425764]
[1743149303251,0.15873395,85574.0,85569.0,0.004]
[1743149303471,0.1404,85574.0,85567.0,0.01454085]
[1743149303740,0.19746594,85576.0,85567.0,0.12879849]
[1743149303958,0.14044,85573.0,85567.0,0.12879849]
[1743149304314,0.14044,85573.0,85570.0,0.004]
[1743149304497,0.02304138,85571.0,85570.0,0.004]
[1743149305737,0.19746594,85576.0,85569.0,0.005]
[1743149306074,0.14052,85575.0,85571.0,0.01454085]
[1743149306200,0.14052,85575.0,85570.0,0.11425764]
[1743149306201,0.19746594,85580.0,85573.0,0.01454085]
[1743149306404,0.14044,85579.0,85573.0,0.11425764]
[1743149307686,0.02284213,85574.0,85573.0,0.12879849]
[1743149308038,0.02284213,85574.0,85572.0,0.0218745]
[1743149308240,0.02284213,85574.0,85573.0,0.003]
[1743149309142,0.02284213,85574.0,85573.0,0.005]
[1743149309593,0.02284213,85574.0,85573.0,0.009]
[1743149310374,0.09904213,85574.0,85573.0,0.009]
[1743149310594,0.82351866,85574.0,85573.0,0.009]
[1743149310754,0.86889694,85574.0,85573.0,0.009]
[1743149311450,0.24542,85567.0,85566.0,0.1063211]
[1743149311648,0.6729709,85567.0,85566.0,0.1063211]
[1743149312808,0.6729709,85567.0,85566.0,0.1073211]
[1743149313419,0.62272,85567.0,85566.0,0.1073211]
[1743149313626,0.62272,85567.0,85566.0,0.1083211]
[1743149314291,0.62272,85567.0,85566.0,0.1073211]
[1743149314494,0.76244,85567.0,85566.0,0.1073211]
[1743149314971,0.76244,85567.0,85566.0,0.1063211]
[1743149315147,0.87669764,85567.0,85566.0,0.1063211]
[1743149316216,0.3,85567.0,85566.0,0.1063211]
[1743149316440,0.68514,85567.0,85566.0,0.1063211]
[1743149316727,0.68514,85567.0,85566.0,0.1073211]
[1743149317342,0.76284,85567.0,85566.0,0.1073211]
[1743149319711,0.75885539,85567.0,85566.0,0.1073211]
[1743149321754,0.87311303,85567.0,85566.0,0.1073211]
[1743149322779,0.89145045,85567.0,85566.0,0.1073211]
[1743149322995,1.05810809,85567.0,85566.0,0.1073211]
[1743149323199,1.08310809,85567.0,85566.0,1e-07]
[1743149323799,0.96885045,85567.0,85566.0,1e-07]
[1743149324001,0.96885045,85567.0,85559.0,0.000338]
[1743149324002,0.550441,85560.0,85559.0,0.000338]
[1743149324200,0.66469864,85560.0,85559.0,0.000338]
[1743149325391,0.548441,85560.0,85559.0,0.000338]
[1743149325541,0.4422,85560.0,85559.0,0.000338]
[1743149325982,0.675954,85560.0,85559.0,0.000338]
[1743149326629,0.677954,85560.0,85559.0,0.000338]
[1743149327057,0.675954,85560.0,85559.0,0.000338]
[1743149327258,0.46694518,85560.0,85559.0,0.000338]
[1743149328169,0.46594518,85560.0,85559.0,0.000338]
[1743149328344,0.46694518,85560.0,85559.0,0.000338]
[1743149329082,0.46394518,85560.0,85559.0,0.000338]
[1743149331606,0.14008,85560.0,85559.0,0.000338]
[1743149331779,0.14052,85560.0,85559.0,0.000338]
[1743149332387,0.001,85560.0,85559.0,0.000338]
[1743149332566,0.001,85560.0,85559.0,0.17593649]
[1743149333105,0.001,85560.0,85559.0,0.17793649]
[1743149333357,0.001,85560.0,85559.0,0.17593649]
[1743149333555,0.001,85560.0,85559.0,0.19777789]
[1743149333754,0.001,85560.0,85559.0,0.20177789]
[1743149333899,0.13948,85569.0,85559.0,0.20177789]
[1743149334103,0.13948,85569.0,85561.0,0.01454085]
[1743149334321,0.13948,85569.0,85562.0,0.11425764]
[1743149334720,0.0001692,85574.0,85563.0,0.01454085]
[1743149334927,0.01833641,85568.0,85567.0,0.01454085]
[1743149335132,0.01833641,85568.0,85567.0,0.12879849]
[1743149335336,0.1397692,85574.0,85567.0,0.12879849]
[1743149335665,0.1397692,85574.0,85569.0,0.01454085]
[1743149335965,0.1397692,85574.0,85570.0,0.11425764]
[1743149336608,0.13944,85573.0,85570.0,0.11425764]
[1743149337443,0.13944,85573.0,85570.0,0.11525764]
[1743149337688,0.13944,85573.0,85570.0,0.11425764]
[1743149338246,0.15777587,85573.0,85570.0,0.11425764]
[1743149338519,0.15777587,85573.0,85570.0,0.11525764]
[1743149338698,0.13944,85573.0,85570.0,0.11525764]
[1743149339260,0.13944,85573.0,85570.0,0.11625764]
[1743149340481,0.13936,85572.0,85570.0,0.11625764]
[1743149341318,0.13936,85572.0,85570.0,0.11525764]
[1743149341711,0.15786497,85572.0,85570.0,0.11625764]
[1743149343129,0.15786497,85572.0,85570.0,0.001]
[1743149343329,0.17600482,85572.0,85570.0,0.001]
[1743149343580,0.15766905,85572.0,85570.0,0.002]
[1743149343958,0.1395292,85572.0,85570.0,0.002]
[1743149345621,0.0029216,85571.0,85570.0,0.002]
[1743149346567,0.0212583,85571.0,85570.0,0.002]
[1743149346796,0.0212583,85571.0,85570.0,0.001]
[1743149347035,0.0029216,85571.0,85570.0,0.001]
[1743149347257,0.0029216,85571.0,85570.0,0.002]
[1743149347670,0.0417233,85571.0,85570.0,0.004]
[1743149348424,0.0029216,85571.0,85570.0,0.004]
[1743149351387,0.2483316,85571.0,85570.0,0.004]
[1743149351632,0.26374719,85571.0,85570.0,0.004]
[1743149351880,0.26374719,85571.0,85570.0,0.002]
[1743149352803,0.23373,85569.0,85559.0,0.000338]
[1743149353038,0.07014515,85568.0,85559.0,0.000338]
[1743149353313,0.07014515,85568.0,85566.0,0.0003384]
[1743149353535,0.00292199,85568.0,85566.0,0.0003384]
[1743149354003,0.00292199,85571.0,85566.0,0.0003384]
[1743149358051,0.02125931,85571.0,85566.0,0.0003384]
[1743149358268,0.1386,85570.0,85566.0,0.0786384]
[1743149360887,0.1386,85570.0,85566.0,0.0003384]
[1743149362449,0.1569371,85570.0,85566.0,0.0003384]
[1743149363910,0.0183371,85570.0,85566.0,0.0003384]
[1743149364119,0.1386,85569.0,85566.0,0.0003384]
[1743149365662,0.1387692,85571.0,85567.0,0.12185148]
[1743149365861,0.0001692,85571.0,85568.0,0.06164085]
[1743149365975,0.0001692,85571.0,85569.0,0.11425764]
[1743149366513,0.0001692,85571.0,85566.0,0.0003384]
[1743149366720,0.01391076,85570.0,85566.0,0.0003384]
[1743149367219,0.01391076,85570.0,85569.0,0.001]
[1743149367651,0.0001692,85571.0,85566.0,0.0003384]
[1743149367859,0.0001692,85571.0,85566.0,0.0023384]
[1743149368221,0.0001692,85571.0,85566.0,0.0013384]
[1743149368427,0.0001692,85571.0,85566.0,0.0003384]
[1743149368728,0.0001692,85571.0,85569.0,0.001]
[1743149368939,0.01833654,85570.0,85569.0,0.001]
[1743149370107,0.0001692,85571.0,85569.0,0.001]
[1743149370310,0.01407996,85571.0,85569.0,0.001]
[1743149370761,0.01700173,85571.0,85569.0,0.001]
[1743149370969,0.01700173,85571.0,85566.0,0.0003384]
[1743149371157,0.01700173,85571.0,85569.0,0.001]
[1743149371351,0.233726,85570.0,85569.0,0.002]
[1743149371565,0.372326,85570.0,85569.0,0.001]
[1743149371892,0.1386,85570.0,85569.0,0.002]
[1743149372715,0.0001692,85571.0,85569.0,0.002]
[1743149372887,0.1386,85570.0,85569.0,0.13079849]
[1743149373087,0.0001692,85571.0,85569.0,0.20779849]
[1743149373497,0.0001692,85571.0,85569.0,0.20879849]
[1743149373741,0.0001692,85571.0,85570.0,0.17589849]
[1743149374571,0.0001692,85571.0,85570.0,0.19782737]
[1743149375047,0.0001692,85571.0,85570.0,0.19982737]
[1743149376229,0.0001692,85571.0,85570.0,0.17789849]
[1743149376411,0.0001692,85571.0,85570.0,0.17989849]
[1743149377224,0.0001692,85571.0,85570.0,0.42531049]
[1743149377454,0.0001692,85571.0,85570.0,0.50831049]
[1743149377805,0.0001692,85571.0,85570.0,0.50631049]
[1743149378896,0.0001692,85571.0,85570.0,0.53002352]
[1743149379104,0.0001692,85571.0,85570.0,0.55191745]
[1743149379638,0.0001692,85571.0,85570.0,0.55391745]
[1743149379843,0.0001692,85571.0,85570.0,0.55191745]
[1743149380043,0.0001692,85571.0,85570.0,0.54991745]
[1743149380254,0.0001692,85571.0,85570.0,0.85591745]
[1743149381079,0.0001692,85571.0,85570.0,0.84991745]
[1743149381479,0.0001692,85571.0,85570.0,0.85791745]
[1743149381865,0.0001692,85571.0,85570.0,0.85391745]
[1743149382809,0.0001692,85571.0,85570.0,0.86085073]
[1743149383008,0.0001692,85571.0,85570.0,0.86685073]
[1743149383790,0.0001692,85571.0,85570.0,0.8431377]
[1743149383995,0.0001692,85571.0,85570.0,0.8491377]
[1743149384716,0.0001692,85571.0,85570.0,0.83820442]
[1743149387381,0.0001692,85571.0,85570.0,0.84913152]
[1743149387990,0.0001692,85571.0,85570.0,0.83459067]
[1743149389160,0.0001692,85571.0,85570.0,0.84913152]
[1743149389927,0.0001692,85571.0,85570.0,0.54913152]
[1743149391717,0.0001692,85571.0,85570.0,1.10553152]
[1743149391899,0.0001692,85571.0,85570.0,1.12301703]
[1743149392098,0.0001692,85571.0,85570.0,1.18094801]
[1743149392303,0.0001692,85571.0,85570.0,1.15798805]
[1743149396254,0.0001692,85571.0,85570.0,1.57588805]
[1743149402369,0.1375098,85588.0,85579.0,0.233702]
[1743149402568,0.1375098,85588.0,85580.0,0.12879849]
[1743149403602,0.1375098,85588.0,85582.0,0.01454085]
[1743149403803,0.1375098,85588.0,85584.0,0.01454085]
[1743149404136,0.1375098,85588.0,85585.0,0.11425764]
[1743149404737,0.1375098,85588.0,85586.0,0.02189393]
[1743149405244,0.1375098,85588.0,85587.0,0.02189393]
[1743149405485,0.2128098,85588.0,85587.0,0.02189393]
[1743149406031,0.55423057,85588.0,85587.0,0.02189393]
[1743149406193,0.5061698,85588.0,85587.0,0.03282103]
[1743149406607,0.52984471,85588.0,85587.0,0.03282103]
[1743149407423,0.2608098,85588.0,85587.0,0.03282103]
[1743149407634,0.1233,85588.0,85587.0,0.03282103]
[1743149407838,0.011684,85586.0,85574.0,0.05264306]
[1743149408055,0.19746594,85584.0,85574.0,0.05264306]
[1743149408877,0.19746594,85584.0,85574.0,0.05564306]
[1743149409075,0.19746594,85584.0,85575.0,0.05702545]
[1743149409376,0.01460532,85583.0,85575.0,0.05702545]
[1743149409544,0.233697,85581.0,85575.0,0.0679901]
[1743149409719,0.00292137,85580.0,85575.0,0.0679901]
[1743149409921,0.00292137,85580.0,85576.0,0.0219293]
[1743149410280,0.233707,85577.0,85576.0,0.0219293]
[1743149410440,0.245392,85577.0,85576.0,0.0219293]
[1743149410651,0.4585775,85577.0,85576.0,0.0219293]
[1743149411413,0.4585775,85577.0,85570.0,0.5567382]
[1743149411414,0.233724,85571.0,85570.0,0.5567382]
[1743149411729,0.68393,85571.0,85570.0,0.5567382]
[1743149412104,0.76073,85571.0,85570.0,0.5567382]
[1743149412702,0.76073,85571.0,85570.0,0.5617382]
[1743149413132,0.76073,85571.0,85570.0,0.5567382]
[1743149413359,0.02378328,85576.0,85571.0,0.0753]
[1743149413565,0.0001691,85583.0,85582.0,0.01454085]
[1743149413812,0.0001691,85583.0,85582.0,0.68527849]
[1743149414643,0.0001691,85583.0,85582.0,0.74216794]
[1743149414817,0.0001691,85583.0,85582.0,0.74316794]
[1743149415361,0.0001691,85583.0,85582.0,0.72209931]
[1743149415766,0.1386891,85583.0,85582.0,0.59330082]
[1743149416264,0.1386891,85583.0,85582.0,0.56742026]
[1743149416673,0.0001691,85583.0,85582.0,0.56742026]
[1743149416917,0.1386891,85583.0,85582.0,0.56742026]
[1743149417130,0.1386891,85583.0,85582.0,0.56048]
[1743149417544,0.16183781,85583.0,85582.0,0.55648]
[1743149417746,0.1386891,85583.0,85582.0,0.56048]
[1743149417923,0.1386891,85583.0,85582.0,0.56448]
[1743149418603,0.1386891,85583.0,85582.0,0.56048]
[1743149418959,0.1386891,85583.0,85582.0,0.56248]
[1743149419625,0.1386891,85583.0,85582.0,0.56448]
[1743149419837,0.0001691,85583.0,85582.0,0.56448]
[1743149421997,0.01850206,85583.0,85582.0,0.56448]
[1743149422880,0.15702206,85583.0,85582.0,0.56448]
[1743149423941,0.1386891,85583.0,85582.0,0.69327849]
[1743149424966,0.1386891,85583.0,85582.0,0.69127849]
[1743149425376,0.1386891,85583.0,85582.0,0.68827849]
[1743149425739,0.1386891,85583.0,85582.0,0.56248]
[1743149426749,0.15702164,85583.0,85582.0,0.56248]
[1743149427192,0.1386891,85583.0,85582.0,0.56248]
[1743149427769,0.0001691,85583.0,85582.0,0.58436995]
[1743149431497,0.01850164,85583.0,85582.0,0.58436995]
[1743149432440,0.01850164,85583.0,85582.0,0.56248]
[1743149433186,0.01850164,85583.0,85582.0,0.006]
[1743149433717,0.0001691,85583.0,85582.0,0.006]
[1743149434400,0.56253429,85583.0,85582.0,0.006]
[1743149434529,0.55961301,85583.0,85582.0,0.006]
[1743149434708,0.5455441,85583.0,85582.0,0.006]
[1743149435799,0.6260441,85583.0,85582.0,0.006]
[1743149436381,0.6757441,85583.0,85582.0,0.006]
[1743149436785,0.69407847,85583.0,85582.0,0.006]
[1743149437366,0.71773371,85583.0,85582.0,0.006]
[1743149438046,0.87900332,85583.0,85582.0,0.006]
[1743149438305,0.86066895,85583.0,85582.0,0.006]
[1743149439087,0.545398,85575.0,85574.0,0.0003382]
[1743149440826,0.545398,85575.0,85574.0,0.0023382]
[1743149441231,0.62311609,85575.0,85574.0,0.0043382]
[1743149441698,0.84180942,85575.0,85574.0,0.0043382]
[1743149442491,0.76409133,85575.0,85574.0,0.0043382]
[1743149445418,0.74575564,85575.0,85574.0,0.0043382]
[1743149448280,0.74575564,85575.0,85574.0,0.0293382]
[1743149451539,0.79475564,85575.0,85574.0,0.0293382]
[1743149451748,1.40219864,85575.0,85574.0,0.0293382]
[1743149451947,1.51645628,85575.0,85574.0,0.0293382]
[1743149452490,1.32513028,85575.0,85574.0,0.0293382]
[1743149452630,1.00901328,85575.0,85574.0,0.0293382]
[1743149452835,1.36687028,85575.0,85574.0,0.0293382]
[1743149453251,1.36687028,85575.0,85574.0,0.0273382]
[1743149453886,1.37069269,85575.0,85574.0,0.0253382]
[1743149454093,1.35235428,85575.0,85574.0,0.0253382]
[1743149454443,1.28121828,85575.0,85574.0,0.0253382]
[1743149454669,1.18042128,85575.0,85574.0,0.0253382]
[1743149456544,1.31894128,85575.0,85574.0,0.0253382]
[1743149456907,1.33744879,85575.0,85574.0,0.0253382]
[1743149457583,1.16604079,85575.0,85574.0,0.0253382]
[1743149457843,1.39848279,85575.0,85574.0,0.0253382]
[1743149458073,1.16604079,85575.0,85574.0,0.0253382]
[1743149459467,1.14770238,85575.0,85574.0,0.0253382]
[1743149460404,1.14770238,85575.0,85574.0,0.0543682]
[1743149460552,1.14770238,85575.0,85574.0,2e-07]
[1743149462221,1.16604203,85575.0,85574.0,2e-07]
[1743149467357,1.14770238,85575.0,85574.0,2e-07]
[1743149468518,1.14770238,85575.0,85574.0,0.0003384]
[1743149469075,0.75982474,85575.0,85574.0,0.0003384]
[1743149469373,0.89834474,85575.0,85574.0,0.0003384]
[1743149469508,0.25041,85571.0,85570.0,6e-07]
[1743149469711,0.25041,85571.0,85515.0,0.035145]
[1743149469712,0.25045,85557.0,85556.0,1e-06]
[1743149469982,0.87902764,85557.0,85556.0,1e-06]
[1743149470205,0.99328528,85557.0,85556.0,1e-06]
[1743149471910,1.01162768,85557.0,85556.0,1e-06]
[1743149472132,0.55047,85550.0,85528.0,0.046838]
[1743149472342,0.01669,85541.0,85540.0,4e-07]
[1743149472497,0.9291972,85541.0,85540.0,4e-07]
[1743149472693,0.005,85529.0,85528.0,4e-07]
[1743149473074,0.66771036,85529.0,85528.0,4e-07]
[1743149473195,0.66478664,85529.0,85528.0,4e-07]
[1743149473396,0.68313373,85529.0,85528.0,4e-07]
[1743149473638,0.90226874,85529.0,85528.0,4e-07]
[1743149473919,1.01652638,85529.0,85528.0,4e-07]
[1743149474682,1.03979937,85529.0,85528.0,4e-07]
[1743149478780,0.83992672,85529.0,85528.0,4e-07]
[1743149480245,0.84454173,85529.0,85528.0,4e-07]
[1743149480639,0.92451093,85529.0,85528.0,4e-07]
[1743149483079,0.78599093,85529.0,85528.0,4e-07]
[1743149483456,0.92455093,85529.0,85528.0,4e-07]
[1743149483664,1.03880857,85529.0,85528.0,4e-07]
[1743149485433,1.06616148,85529.0,85528.0,4e-07]
[1743149485725,1.09116148,85529.0,85528.0,4e-07]
[1743149486334,1.09216148,85529.0,85528.0,4e-07]
[1743149486775,1.09316148,85529.0,85528.0,4e-07]
[1743149486931,1.09216148,85529.0,85528.0,4e-07]
[1743149487133,1.09316148,85529.0,85528.0,4e-07]
[1743149489832,1.11151181,85529.0,85528.0,4e-07]
[1743149491566,0.98601181,85529.0,85528.0,4e-07]
[1743149491708,0.82245181,85529.0,85528.0,4e-07]
[1743149491895,0.96101181,85529.0,85528.0,4e-07]
[1743149492917,0.98601181,85529.0,85528.0,4e-07]
[1743149493120,0.52245181,85529.0,85528.0,4e-07]
[1743149493321,0.66101181,85529.0,85528.0,4e-07]
[1743149493537,0.38522883,85529.0,85528.0,0.0770004]
[1743149493738,0.27097119,85529.0,85528.0,0.0770004]
[1743149493939,0.40953119,85529.0,85528.0,0.0770004]
[1743149494143,0.70953119,85529.0,85528.0,0.0770004]
[1743149495631,0.70753119,85529.0,85528.0,0.0770004]
[1743149495805,0.82178883,85529.0,85528.0,0.0770004]
[1743149497526,0.4387292,85529.0,85528.0,0.0770004]
[1743149498132,0.0001692,85529.0,85528.0,0.1258004]
[1743149498287,0.1387292,85529.0,85528.0,0.1258004]
[1743149499550,0.1387292,85529.0,85528.0,0.1288004]
[1743149500052,0.1387292,85529.0,85528.0,0.1258004]
[1743149500322,0.1387292,85529.0,85528.0,0.1298004]
[1743149500489,0.1386892,85529.0,85528.0,0.1298004]
[1743149500689,0.1386892,85529.0,85528.0,0.25898388]
[1743149501043,0.15703451,85529.0,85528.0,0.25898388]
[1743149501668,0.15703451,85529.0,85528.0,0.25698388]
[1743149502002,0.15666974,85529.0,85528.0,0.25898388]
[1743149502301,0.15666974,85529.0,85528.0,0.26198388]
[1743149503045,0.15666974,85529.0,85528.0,0.51878484]
[1743149503254,0.01834531,85529.0,85528.0,0.26198388]
[1743149503450,0.01834531,85529.0,85528.0,0.49582488]
[1743149503798,0.1,85536.0,85535.0,0.00038499]
[1743149504029,0.23852,85536.0,85535.0,0.09432584]
[1743149504750,0.5195713,85536.0,85535.0,0.0794]
[1743149504947,0.472339,85536.0,85535.0,0.0794]
[1743149505087,0.4725082,85536.0,85535.0,0.0794]
[1743149505291,0.1386892,85536.0,85535.0,0.0794]
[1743149505739,0.1386892,85536.0,85535.0,0.0824]
[1743149506548,0.1386892,85536.0,85535.0,0.08578499]
[1743149506752,0.1386892,85536.0,85535.0,0.0854]
[1743149506753,0.3725082,85536.0,85535.0,0.0854]
[1743149506963,0.1386892,85536.0,85535.0,0.0854]
[1743149507195,0.1386492,85536.0,85535.0,0.0854]
[1743149510155,0.1386492,85536.0,85535.0,0.08578499]
[1743149510765,0.15251412,85536.0,85535.0,0.006]